Cogmind - Beta 15 @@@ ROGUE MODE // 2025.08.20 @ 13:05:09 Player: KeKe Result: Destroyed by C-17 Slicer with Blade Saw Performance ------------- Evolutions (4) 2000 Regions Visited (5) 1000 Robots Destroyed (36) 180 Value Destroyed (1001) 1001 Prototype IDs (5) 100 Alien Tech Used (0) 0 Bonus (200) 200 TOTAL SCORE: 4481 Bonus ------- Entered Garrisons 200 Cogmind --------- Core Integrity 0/850 Matter 246/300 Energy 100/100 System Corruption 4% Temperature Cool (0) Movement Core (50) Location -6/Garrison Parts ------- > --- POWER (1) -------- (None) > --- PROPULSION (6) --- (None) > --- UTILITY (4) ------ Enhanced Optical Array Makeshift Salvage Targeting Computer > --- WEAPON (4) ------- (None) > --- INVENTORY (5) ---- Makeshift Microdissipator Network Peak State ------------ > --- POWER ------------ Cold-Fission Reactor > --- PROPULSION ------- Flying CIT-Titanium Exoskeleton > --- UTILITY ---------- Armored Scrap Engine Enhanced Optical Array Makeshift Salvage Targeting Computer > --- WEAPON ----------- Thermal Phase Construct/C > --- INVENTORY -------- Makeshift Microdissipator Network [Rating: 44] Favorites ----------- Power Ion Engine Engine Ion Engine Reactor Constructs Propulsion Improved Treads Treads Improved Treads Leg Aluminum Leg Wheel Compact Wheel Flight Unit Constructs Utility Large Storage Unit Device Armored Scrap Engine Storage Large Storage Unit Processor Makeshift Salvage Targeting Computer Protection Hardened Light Armor Plating Weapon Light Assault Rifle Energy Cannon Constructs Ballistic Gun Light Assault Rifle Launcher Mini Grenade Launcher Special Weapon Mining Laser Build | -11 -10 -10 -8 -6 -6 ------- Run | Yrd Mat Sub Rec Fac Gar Slots Evolved 8 | . . . . 8 . Power . | . . . . . . Propulsion 4 | . . . . 4 . Utility 2 | . . . . 2 . Weapon 2 | . . . . 2 . Parts Attached 24 | 3 7 5 6 3 . Power 1 | . 1 . . . . Engine 1 | . 1 . . . . Core . | . . . . . . Reactor . | . . . . . . Propulsion 7 | 3 2 2 . . . Treads 4 | . 2 2 . . . Leg . | . . . . . . Wheel 3 | 3 . . . . . Hover . | . . . . . . Flight . | . . . . . . Utility 9 | . 2 . 4 3 . Device 2 | . . . 2 . . Storage 1 | . 1 . . . . Processor 4 | . 1 . . 3 . Hackware . | . . . . . . Protection 2 | . . . 2 . . Artifact . | . . . . . . Weapon 7 | . 2 3 2 . . Energy Gun . | . . . . . . Energy Cannon . | . . . . . . Ballistic Gun 4 | . 1 2 1 . . Ballistic Cannon . | . . . . . . Launcher 2 | . 1 . 1 . . Special Weapon 1 | . . 1 . . . Impact Weapon . | . . . . . . Slashing Weapon . | . . . . . . Piercing Weapon . | . . . . . . Special Melee Weapon . | . . . . . . Unidentified Prototypes 1 | . . . 1 . . Parts Lost 16 | . 1 4 2 7 2 Power 3 | . 1 1 . 1 . Propulsion 4 | . . 2 . 2 . Utility 4 | . . . 1 1 2 Weapon 5 | . . 1 1 3 . Highest Loss Streak 4 | . 1 4 2 3 2 To Critical Strikes . | . . . . . . Average Backups 8 | 5 13 14 8 1 1 Power . | 1 . . . . . Propulsion 1 | 3 3 3 1 . . Utility 3 | . 4 6 4 1 1 Weapon 2 | 1 4 4 2 . . Tool/Special . | . . . . . . Unused Backups 13 | 4 4 . 4 . 1 Power 1 | . 1 . . . . Propulsion 6 | 4 2 . . . . Utility 5 | . . . 4 . 1 Weapon 1 | . 1 . . . . Tool/Special . | . . . . . . Average Slot Usage (%) 62 | . 92 99 65 30 20 Engine 5 | . 14 13 . . . Treads 14 | . 23 27 16 . . Leg 1 | . . . 4 3 . Device 5 | . . . 13 6 6 Storage 7 | . 14 14 8 . . Processor 8 | . 6 14 . 12 13 Ballistic Gun 7 | . 21 5 8 1 . Launcher 5 | . 6 12 8 . . Special Weapon 2 | . . 9 4 . . Peak Build Rating 44 | 7 12 12 30 44 29 Average Rating 19 | 6 10 11 16 35 28 On Entrance 15 | 6 7 12 9 29 27 Naked Turns . | . . . . . . Heaviest Build 27 | 12 27 27 23 12 1 Greatest Support 46 | 32 46 46 46 26 3 Greatest Overweight (x) 3 | . 1 . . 3 . Average Overweight (x) . | . . . . . . Largest Inventory Capacity 15 | 8 15 15 15 5 5 Average Capacity 10 | 8 14 15 10 5 5 Most Carried 15 | 8 15 15 15 2 1 Average Carried 8 | 5 13 14 8 1 1 Final Capacity 15 | 8 15 15 5 5 5 Final Carried 15 | 8 15 12 3 1 1 Scrap Engine Consumption 34 | . . . 18 16 . Constructs Created 5 | . . . 2 3 . Constructs Modified 3 | . . . 1 2 . Class Distribution -------------------- 92% | Mutant 7% | Construct Dominant Class ---------------- Mutant | -10/Materials Mutant | -10/Subcaves Mutant | -8/Recycling Mutant | -6/Factory Mutant | -6/Garrison Resources | -11 -10 -10 -8 -6 -6 ----------- Run | Yrd Mat Sub Rec Fac Gar Matter Collected 833 | 258 79 160 246 90 . Remotely . | . . . . . . Salvage Created 948 | 164 223 117 194 250 . Parts 63 | 14 24 9 6 10 . Haulers Intercepted . | . . . . . . Recyclers Shooed 1 | . 1 . . . . Parts Field Recycled . | . . . . . . Retrieved Matter . | . . . . . . Parts Self-Destructed 10 | . . 10 . . . Prevented . | . . . . . . Kills | -11 -10 -10 -8 -6 -6 ------- Run | Yrd Mat Sub Rec Fac Gar Combat Hostiles Destroyed 25 | . 12 5 3 5 . Guns 5 | . 3 . . 2 . Cannons 3 | . . . . 3 . AOE 17 | . 9 5 3 . . Classes Destroyed 11 | 2 4 2 2 1 . Builder 2 | . 2 . . . . Tunneler 5 | 5 . . . . . Recycler 1 | 1 . . . . . Operator 1 | . 1 . . . . Turret 2 | . . 2 . . . Swarmer 9 | . 6 3 . . . Grunt 9 | . 6 . . 3 . Programmer 2 | . . . . 2 . Subdweller 2 | . . 2 . . . Scientist 2 | . . . 2 . . Scrapper 3 | . . . 3 . . Best Kill Streak 7 | 5 7 3 3 3 . Combat Bots Only 5 | . 5 3 3 3 . Max Kills in Single Turn 3 | 1 3 3 1 1 . Gunslinging . | . . . . . . Exploded 3 | . 3 3 1 . . Melee . | . . . . . . Uniques/NPCs Destroyed . | . . . . . . Combat | -11 -10 -10 -8 -6 -6 -------- Run | Yrd Mat Sub Rec Fac Gar Hostile Shots Fired 459 | . 35 142 10 213 59 Missed 176 | . 14 50 3 80 29 Hits 283 | . 21 92 7 133 30 Melee 12 | . . . . 9 3 Projectile 271 | . 21 92 7 124 27 Critical Strikes 9 | . . . 1 8 . Damage Taken 3674 | . 220 740 258 2138 318 Core 1088 | . 32 159 32 644 221 Absorbed by Shields . | . . . . . . Regen/Repaired (Parts) 147 | . . . 60 87 . Core Remaining (%) 55 | 100 . . 10 . . Volleys Fired 149 | 14 25 60 11 39 . Largest 2 | 2 2 2 2 1 . Hottest 100 | 40 40 100 100 68 . Shots Fired 203 | 28 41 83 12 39 . Gun 134 | 28 34 46 . 26 . Cannon 13 | . . . . 13 . Launcher 22 | . 7 7 8 . . Special 34 | . . 30 4 . . Kinetic 120 | 28 34 46 . 12 . Thermal 61 | . . 30 4 27 . Explosive 22 | . 7 7 8 . . Electromagnetic . | . . . . . . Robot Hit Streak 14 | 6 4 11 2 14 . Robot Miss Streak 7 | 2 7 2 2 2 . Penetration Max 1 | . . . . 1 . Secondary Targets 1 | . 1 . . . . Max Gunslinging Chain 1 | . 1 . . . . Shots Hit Robots 122 | 17 14 54 4 33 . Core Hits 76 | 11 22 23 8 12 . Critical Kills . | . . . . . . Critical Parts Destroyed 1 | . . 1 . . . Critical Strikes 3 | . . 1 . 2 . Burn 2 | . . . . 2 . Destroy 1 | . . 1 . . . Melee Attacks . | . . . . . . Impact . | . . . . . . Slashing . | . . . . . . Piercing . | . . . . . . Sneak Attacks . | . . . . . . Combat Hostiles . | . . . . . . Follow-up Attacks . | . . . . . . Damage Inflicted 3305 | 146 943 1154 386 676 . Guns 963 | 146 146 251 . 420 . Cannons 256 | . . . . 256 . Explosions 1510 | . 797 375 338 . . Melee . | . . . . . . Ramming . | . . . . . . Kinetic 660 | 146 146 251 . 117 . Thermal 1285 | . 150 528 48 559 . Explosive 1360 | . 647 375 338 . . Electromagnetic . | . . . . . . Impact . | . . . . . . Slashing . | . . . . . . Piercing . | . . . . . . Highest Corruption 4 | . . . . 4 4 Average Corruption 3 | . . . . 2 4 Corruption Purged . | . . . . . . Corruption Blocked . | . . . . . . Effects 22 | . . . . 2 20 Message Errors 6 | . . . . . 6 Matter Fused 9 | . . . . 2 7 Energy Discharges 3 | . . . . . 3 Data Loss (minor) 2 | . . . . . 2 Data Loss (major) 2 | . . . . . 2 Overload Shots . | . . . . . . Overflow Damage 61 | . 32 . 8 21 . Projectiles 21 | . . . . 21 . Explosions 40 | . 32 . 8 . . Melee . | . . . . . . Knockbacks . | . . . . . . Impact . | . . . . . . Kinetic . | . . . . . . Secondary . | . . . . . . Self-Inflicted Damage 118 | . 27 . 91 . . Shots 7 | . 2 . 5 . . Rammed . | . . . . . . Targets Rammed . | . . . . . . Kicked . | . . . . . . Crushed . | . . . . . . Highest Temperature 177 | . 12 10 56 177 . Average Temperature 43 | . 8 5 29 55 . Received Heat Transfer 1273 | . 60 528 109 528 48 Siege Activations . | . . . . . . Martial Activations . | . . . . . . Shielding Activations . | . . . . . . Robots Disrupted . | . . . . . . Combat Hostiles . | . . . . . . Robots Corrupted . | . . . . . . Combat Hostiles . | . . . . . . Parts Fried . | . . . . . . Impact Corruptions . | . . . . . . Robots Melted . | . . . . . . Combat Hostiles . | . . . . . . Parts Melted 4 | . . . 2 2 . Heat Transferred 2225 | . 100 1100 100 925 . Parts Sabotaged . | . . . . . . Parts Stolen . | . . . . . . Parts Stripped . | . . . . . . Power Chain Reactions . | . . . . . . Alert | -11 -10 -10 -8 -6 -6 ------- Run | Yrd Mat Sub Rec Fac Gar Maximum Alert Level 1 | . 1 . . . . Low Security (%) 96 | 100 88 . 100 100 100 Level 1 3 | . 11 . . . . Level 2 . | . . . . . . Level 3 . | . . . . . . Level 4 . | . . . . . . Level 5 . | . . . . . . High Security . | . . . . . . Max Security . | . . . . . . Peak Influence 234 | 20 234 . 49 163 118 Initial 118 | . 6 . 34 . 118 Average 58 | 4 71 . 5 32 117 Influence Increases 989 | 30 436 160 78 285 . Destroy 0b10 Robot/C 440 | . 240 100 . 100 . Destroy 0b10 Robot/NC 45 | 30 15 . . . . Destroy Leader 80 | . 50 . . 30 . Successful Hack 46 | . 17 . 15 14 . Disable Machine 105 | . 60 . 45 . . Destroy Structure 78 | . 54 . 18 6 . Lose Combat Pursuer 195 | . . 60 . 135 . Influence Decreases 891 | 20 420 114 150 116 71 Entered New Map 107 | . 4 14 38 . 51 Time Decay 516 | 20 256 60 100 80 . Lost Part 118 | . 10 40 12 36 20 Purge Threat 150 | . 150 . . . . Squads Dispatched 6 | . 2 . . 4 . Investigation 2 | . 2 . . . . Extermination 1 | . . . . 1 . Reinforcement 1 | . . . . 1 . Assault . | . . . . . . Garrison 2 | . . . . 2 . Intercept . | . . . . . . Searches Triggered . | . . . . . . Construction Impeded 1 | . . . . 1 . Haulers Reinforced . | . . . . . . Active Scanning Responses . | . . . . . . Cargo Convoy Interrupts . | . . . . . . Stealth | -11 -10 -10 -8 -6 -6 --------- Run | Yrd Mat Sub Rec Fac Gar Distress Signals . | . . . . . . Communications Jammed . | . . . . . . Distress Signals . | . . . . . . Times Spotted 56 | . 19 6 3 18 10 Peak Tracking Total 11 | . 4 2 4 8 11 Tactical Retreats 8 | . . 2 . 6 . Traps | -11 -10 -10 -8 -6 -6 ------- Run | Yrd Mat Sub Rec Fac Gar Traps Triggered 2 | . 2 . . . . Indirectly . | . . . . . . Trap Hack Attempts . | . . . . . . Triggered . | . . . . . . Disarmed . | . . . . . . Reprogrammed . | . . . . . . Reused . | . . . . . . Traps Extracted . | . . . . . . Installed . | . . . . . . Triggered . | . . . . . . Machines | -11 -10 -10 -8 -6 -6 ---------- Run | Yrd Mat Sub Rec Fac Gar Machines Disabled 10 | . 4 1 5 . . Max in Single Turn 3 | . 3 1 2 . . Machines Repaired . | . . . . . . Machines Dismantled . | . . . . . . Machines Sabotaged . | . . . . . . Overloaded Fab Kills . | . . . . . . Hacking | -11 -10 -10 -8 -6 -6 --------- Run | Yrd Mat Sub Rec Fac Gar Machines Accessed 14 | . 7 . 6 1 . Terminals 10 | . 7 . 3 . . Fabricators . | . . . . . . Repair Stations . | . . . . . . Recycling Units 2 | . . . 2 . . Scanalyzers . | . . . . . . Garrison Access 1 | . . . . 1 . Total Hacks 34 | . 22 . 9 3 . Successful 19 | . 10 . 8 1 . Failed 15 | . 12 . 1 2 . Catastrophic 2 | . 2 . . . . Database Lockouts . | . . . . . . Manual 26 | . 21 . 5 . . Terminals 27 | . 22 . 5 . . Fabricators . | . . . . . . Repair Stations . | . . . . . . Recycling Units 2 | . . . 2 . . Scanalyzers . | . . . . . . Garrison Access 3 | . . . . 3 . Terminal Hacks 7 | . 3 . 4 . . Robot Analysis 1 | . 1 . . . . Terminal Index 1 | . 1 . . . . Unreport Threat 1 | . 1 . . . . Zone Layout 2 | . . . 2 . . Release Object 2 | . . . 2 . . Fabricator Hacks . | . . . . . . Repair Station Hacks . | . . . . . . Recycling Unit Hacks 2 | . . . 2 . . Report Inventory 2 | . . . 2 . . Scanalyzer . | . . . . . . Garrison Access Hacks 1 | . . . . 1 . Unlock Access 1 | . . . . 1 . Unauthorized Hacks 9 | . 7 . 2 . . Terminals 9 | . 7 . 2 . . Botnet 8 | . 6 . 2 . . Operators 1 | . 1 . . . . Fabricators . | . . . . . . Repair Stations . | . . . . . . Recycling Units . | . . . . . . Scanalyzers . | . . . . . . Garrison Access . | . . . . . . Data Cores Recovered 1 | . 1 . . . . Used 1 | . 1 . . . . Hacking Detections 8 | . 5 . 2 1 . Full Trace Events . | . . . . . . Feedback Events . | . . . . . . Feedback Blocked . | . . . . . . Robot Schematics Acquired . | . . . . . . Robots Built . | . . . . . . Authchips . | . . . . . . Time . | . . . . . . Total Robot Build Rating . | . . . . . . Part Schematics Acquired . | . . . . . . Parts Built . | . . . . . . Authchips . | . . . . . . Time . | . . . . . . Total Part Build Rating . | . . . . . . Parts Repaired . | . . . . . . Time . | . . . . . . Parts Recycled . | . . . . . . Recycled Matter . | . . . . . . Retrieved Matter . | . . . . . . Retrieved Components . | . . . . . . Parts Scanalyzed . | . . . . . . Part Schematics Acquired . | . . . . . . Parts Damaged . | . . . . . . Bothacking | -11 -10 -10 -8 -6 -6 ------------ Run | Yrd Mat Sub Rec Fac Gar Used RIF Installer . | . . . . . . Robots Hacked . | . . . . . . Non-combat . | . . . . . . Combat . | . . . . . . Robot Hacks Applied . | . . . . . . Relay Couplers Released . | . . . . . . Fabnet Peak Effective % . | . . . . . . Robots Rewired . | . . . . . . Allies Hacked . | . . . . . . Hacks Repelled . | . . . . . . Allies | -11 -10 -10 -8 -6 -6 -------- Run | Yrd Mat Sub Rec Fac Gar Total Allies . | . . . . . . Largest Group . | . . . . . . Highest-Rated Group . | . . . . . . Highest-Rated Ally . | . . . . . . Total Orders . | . . . . . . Ally Attacks . | . . . . . . Total Damage . | . . . . . . Kills . | . . . . . . Allies Corrupted . | . . . . . . Allies Melted . | . . . . . . Intel | -11 -10 -10 -8 -6 -6 ------- Run | Yrd Mat Sub Rec Fac Gar Active Infowar (turns) 1833 | . . . 489 414 930 Optics 1344 | . . . . 414 930 Structural 489 | . . . 489 . . Robot Analysis Total 1 | . 1 . . . . Derelict Logs Recovered 1 | . . 1 . . . Drone Launches . | . . . . . . Drone Recoveries . | . . . . . . Exploration | -11 -10 -10 -8 -6 -6 ------------- Run | Yrd Mat Sub Rec Fac Gar Turns Passed 3996 | 89 827 770 899 481 930 Spaces Moved 1782 | 38 511 354 529 285 65 Core 282 | . . . 86 131 65 Treads 1047 | . 394 354 299 . . Legs 261 | 18 . . 144 99 . Wheels 137 | 20 117 . . . . Hover . | . . . . . . Flight 55 | . . . . 55 . Fastest Speed 50 | 90 90 160 50 50 50 Average Speed 137 | 108 144 160 142 111 50 Slowest Speed 200 | 120 160 160 160 200 50 Overloaded Moves . | . . . . . . Propulsion Burnouts . | . . . . . . Robots Hopped 2 | . . . . 2 . Potential Cave-ins . | . . . . . . Cave-ins Triggered . | . . . . . . Exploration Rate (%) 34 | 4 89 21 65 8 22 Regions Visited 5 Branch Regions 2 Pre-discovered Areas . | . . . . . . Known Exits Taken 3 | . 1 1 . 1 . Unknown Exits Taken 2 | 1 . . 1 . . Scrap Searched . | . . . . . . Spaces Dug 13 | . 13 . . . . Terrain Destroyed 128 | . 59 33 30 6 . Melee . | . . . . . . Projectile 5 | . . . . 5 . AOE 122 | . 59 33 30 . . Terrain Rammed . | . . . . . . Walls Destroyed . | . . . . . . Machines Disabled . | . . . . . . Actions | -11 -10 -10 -8 -6 -6 --------- Run | Yrd Mat Sub Rec Fac Gar Total 3090 | 65 566 422 664 410 963 Wait 1077 | . 2 3 90 84 898 Move 1774 | 37 510 353 528 281 65 Hop 2 | . . . . 2 . Pick Up 27 | 6 14 . 7 . . Fast Attach 4 | . 2 . 1 1 . Attach 10 | . 1 3 4 2 . Detach . | . . . . . . Swap 14 | 3 5 3 3 . . Drop 33 | 5 7 . 20 1 . Fire 149 | 14 25 60 11 39 . Melee . | . . . . . . Ram . | . . . . . . Kick . | . . . . . . Crush . | . . . . . . Escape Stasis . | . . . . . . Rewire . | . . . . . . Trap . | . . . . . . Miscellaneous . | . . . . . . Route ------- -11/Scrapyard -10/Materials (discovered 6 exits: *Mat x3 / [*Min x2] / *Sub) -10/Subcaves -8/Recycling -6/Factory -6/Garrison History --------- Turn | Location | Event 1 | -11/Scrapyard | Discovered new exit (range 2) 90 | -11/Scrapyard | Entered Materials 154 | -10/Materials | Discovered new exit (range 5) 308 | -10/Materials | Build established: Mutant 445 | -10/Materials | Discovered new exit (range 11) 606 | -10/Materials | Discovered new exit (range 5) 657 | -10/Materials | Discovered new exit (range 6) 742 | -10/Materials | Discovered new exit (range 7) 764 | -10/Materials | Identified exit to Materials 906 | -10/Materials | Discovered new exit (range 10) 915 | -10/Materials | Identified exit to Subcaves 917 | -10/Materials | Entered Subcaves 992 | -10/Subcaves | A swath of the cavern ceiling suddenly collapsed 1422 | -10/Subcaves | Learned location of 1 exit from Materials 1456 | -10/Subcaves | Shifting Twisted Machinery released Sub. Monowheel 1459 | -10/Subcaves | Shifting Twisted Machinery released Sub. Power Source 1497 | -10/Subcaves | Shifting Twisted Machinery released Sub. Monowheel 1590 | -10/Subcaves | Discovered new exit (range 12) 1623 | -10/Subcaves | Core integrity fell below 50% 1671 | -10/Subcaves | Lost 4 parts (1p2n1w) 1685 | -10/Subcaves | Identified exit to Recycling 1687 | -10/Subcaves | Entered Recycling 1896 | -8/Recycling | Discovered new exit (range 17) 2138 | -8/Recycling | Scanned before Scraplab entrance 2168 | -8/Recycling | Discovered new exit (range 11) 2173 | -8/Recycling | Entered Scraplab 2192 | -8/Recycling | Angered Scraplab inhabitants 2192 | -8/Recycling | Found Prototype Device 2205 | -8/Recycling | Core integrity fell below 20% 2215 | -8/Recycling | Identified Scrap Engine 2586 | -8/Recycling | Entered Factory 2586 | -6/Factory | Evolved 8 slots: Propulsion x4, Utility x2, Weapon x2 2921 | -6/Factory | Garrison activated, responded to threat 2959 | -6/Factory | Core integrity fell below 50% 2961 | -6/Factory | Lost 3 parts (1p1u1w) 3067 | -6/Factory | Identified exit to Garrison 3067 | -6/Factory | Entered Garrison 3979 | -6/Garrison | Triggered checkpoint 3984 | -6/Garrison | Core integrity fell below 20% 3993 | -6/Garrison | Triggered checkpoint 3993 | -6/Garrison | Triggered checkpoint 3997 | -6/Garrison | Destroyed by C-17 Slicer with Blade Saw Last Messages --------------- 03305_ System corrupted: Matter fused (-5). 03341_ System corrupted: Matter fused (-8). 03373_ System corrupted: Matter fused (-10). 03398_ System corrupted: Energy discharge (-23). 03478_ System corrupted: Matter fused (-8). 03556_ CRY:ITRCEPI Q%OQ51HCEO9B1IWC4W=TR#TFWCRHIU# 03681_ System corrupted: Matter fused (-6). 03740_ FS4K#23 1>IK#P4YN5BZZWX9EV#HTW 03772_ RCKXH=/LSAI#IR2W=IG9H7I GOS>SE 03855_ System corrupted: Substantial component data lost. 03903_ System corrupted: Matter fused (-7). 03927_ System corrupted: Substantial component data lost. 03929_ ALERT: Dispatching investigation squad to Factory. 03970_ 0E QW|Z,VITSOUUFG=IIE%Y,U1VE 03970_ Arm. Scrap Engine destroyed. 03970_ Scrap Engine core remains intact and functional. 03993_ Beams of light sweep through the air. An alarm sounds. 03993_ Scrap Engine destroyed. Map ----- +----------------------------------------------------+ | ?????????????????????????????????????????????????? | | ?????????????????????????????????????????????????? | | ?????????????????????????????????????????????????? | | ##########???????????????????????????????????????? | | #???????????????????????????????????????? | | ### ## #???????????????????????????????????????? | | ??# ???# #???????????????????????????????????????? | | ???????# #???????????????????????????????????????? | | ???????# #???????????????????????????????????????? | | ???????# #???????????????????????????????????????? | | ####+### ##########??????????????????????????????? | | #??????????????????????????????? | | #??????????????????????????????? | | #??????????????????????????????? | | ######## ###### #??????????????????????????????? | | ???????# #????# #??????????????????????????????? | | ???????# #????# #??????????????????????????????? | | ???????# ###### #??????????????????????????????? | | ???????# #??????????#???????????????????? | | ???????######## #????????? #???????????????????? | | ??????????????# #????????? #???????????????????? | | ??????????????# #???????? #???????????????????? | | ??????????????# #######?? #???????????????????? | | ??????????????# ## #? #???????????????????? | | ??????????????# s## Y ##c #???????????????????? | | ??????????????# s c@c #???????????????????? | | ??????????????# s c #???????????????????? | | ??????????????# #???????????????????? | | ??????????????# ## ## #???????????????????? | | ??????????????# ## #? #???????????????????? | | ??????????????" ??????????????????? | | ??????????????" #?????????????????? | | ??????????????" #?????????????????? | | ??????????????" x#?????????????????? | | ??????????????# ## ## ###?????????????????? | | ??????????????# ## #? #???????????????????? | | ??????????????# ? ??????????????????? | | ??????????????# ? ?????????????????? | | ??????????????# ? ????????????????? | | ??????????????## ##""""##########???????????????? | | ???????????????# ???????????????????????????????? | | ???????????????# ???????????????????????????????? | | ???????????????? ???????????????????????????????? | | ???????????????? ???????????????????????????????? | | ???????????????? ???????????????????????????????? | | ???????????????? ???????????????????????????????? | | ?????????????????????????????????????????????????? | | ?????????????????????????????????????????????????? | | ?????????????????????????????????????????????????? | | ?????????????????????????????????????????????????? | +----------------------------------------------------+ Best States ------------- Heat Dissipation 37 Energy Generation 18 Energy Capacity 250 Matter Stores 300 Matter Capacity 300 Sight Range 22 Terrain Scan Density 10 Armor Coverage 150 Evasion (%) 55 Targeting Accuracy 5 Recoil Reduction 2 Salvage Targeting 4 Item Schematics ----------------- None Robot Schematics ------------------ None Fabricated ------------ Nothing Repaired ---------- Nothing Alien Tech Used ----------------- None Achievements -------------- None Challenges ------------ None Game ------ Seed PulseTimingInterrupter Manual? 0 Play Time 00:49:21 Cumulative 112.0 hours Start 2025.08.20 @ 12:15:40 End 2025.08.20 @ 13:05:09 Sessions 1 Manual Loads 0 Difficulty Rogue Special Mode None Game No. 111 Rogue 111 Adventurer 0 Explorer 0 Win Type - Total 1 Types 1/0/0/0/0/0/0/0/0/0 Lore% 58 Gallery% 47 Achievement% 47 Wizard Run 0 Options --------- Layout 0 ASCII 0 Keyboard 0 Movement Mouse Keybinds 0 Fullscreen 2 Font 18/X11 Map View 76x50 Zoom Use 2% Tactical HUD 1 Map Filters NONE Filters NONE Steam 1 RUN: 85ca9c94-2929-4e0f-bc8a-f0a7b408e892